bitfinex/quotes_BTCUSD_20250119
["timestamp","ask_amount","ask_price","bid_price","bid_amount"]
[1737255351735,1.4724323,105030.0,105020.0,0.00316182]
[1737255351913,1.72892288,105030.0,105020.0,0.00316182]
[1737255353106,0.99786097,105030.0,105020.0,0.00316182]
[1737255354978,0.99786097,105030.0,105020.0,0.00537488]
[1737255355322,1.07624533,105030.0,105020.0,0.00537488]
[1737255355523,1.07548614,105030.0,105020.0,0.00057836]
[1737255355732,1.32548614,105030.0,105020.0,0.00057836]
[1737255356155,1.22548614,105030.0,105020.0,0.00057836]
[1737255357164,1.69889963,105030.0,105020.0,0.00057836]
[1737255358083,1.25764639,105030.0,105020.0,0.00057836]
[1737255359078,1.25764639,105030.0,105020.0,3.6e-07]
[1737255359228,1.12579364,105030.0,105020.0,3.6e-07]
[1737255359825,0.71975475,105030.0,105020.0,3.6e-07]
[1737255360042,1.4494828,105030.0,105020.0,3.6e-07]
[1737255362971,1.24026322,105030.0,105020.0,3.6e-07]
[1737255363344,1.5994828,105030.0,105020.0,3.6e-07]
[1737255363509,1.54872361,105030.0,105020.0,3.6e-07]
[1737255363719,1.36354585,105030.0,105020.0,3.6e-07]
[1737255364981,0.245219,105020.0,105010.0,3.1e-07]
[1737255365185,0.5820696,105020.0,105010.0,0.0005]
[1737255366588,0.83795501,105020.0,105010.0,0.0005]
[1737255368053,0.83795501,105020.0,104930.0,0.06730767]
[1737255368054,0.095274,104960.0,104930.0,0.06730767]
[1737255368263,0.45451158,104940.0,104930.0,0.04824767]
[1737255368462,0.245301,104930.0,104920.0,0.50819675]
[1737255368681,0.55376139,104930.0,104920.0,0.50049845]
[1737255368805,0.65936139,104930.0,104920.0,0.50049845]
[1737255369003,0.65936139,104930.0,104920.0,0.50326342]
[1737255369004,0.80376139,104930.0,104920.0,0.50326342]
[1737255369307,0.57314179,104930.0,104920.0,0.50326342]
[1737255369513,0.55936139,104930.0,104920.0,0.50326342]
[1737255369729,0.70936139,104930.0,104920.0,0.50326342]
[1737255369937,1.09241222,104930.0,104920.0,0.00276497]
[1737255370135,0.09531,104920.0,104910.0,0.0004279]
[1737255370341,0.40377039,104920.0,104910.0,0.0004279]
[1737255370815,0.40377039,104920.0,104910.0,0.00321104]
[1737255371248,1.13310344,104920.0,104910.0,0.00321104]
[1737255371631,1.13278244,104920.0,104910.0,0.00321104]
[1737255371839,1.13278244,104920.0,104910.0,0.0004279]
[1737255372017,1.13278244,104920.0,104910.0,0.00321104]
[1737255372213,0.65816274,104920.0,104910.0,0.00321104]
[1737255372549,0.245319,104910.0,104900.0,0.03074837]
[1737255372727,0.55377939,104910.0,104900.0,0.03074837]
[1737255373503,0.45846039,104910.0,104880.0,0.1253]
[1737255373700,0.10460979,104890.0,104880.0,0.1253]
[1737255374311,0.10460979,104890.0,104880.0,0.12512416]
[1737255374510,0.10460979,104890.0,104870.0,0.095355]
[1737255374714,0.10460979,104880.0,104870.0,0.095355]
[1737255374950,0.10510853,104880.0,104870.0,0.095355]
[1737255375353,0.10510853,104880.0,104860.0,0.476801]
[1737255375553,0.10510853,104880.0,104860.0,0.57604181]
[1737255375735,0.10460979,104870.0,104860.0,0.38531281]
[1737255375932,0.10510853,104880.0,104860.0,0.38531281]
[1737255376132,0.10510853,104880.0,104860.0,0.57603181]
[1737255377797,0.10510853,104880.0,104870.0,0.0768]
[1737255378520,0.30506532,104880.0,104870.0,0.0768]
[1737255379546,0.68646232,104880.0,104860.0,0.0476]
[1737255379707,0.10460979,104870.0,104860.0,0.0476]
[1737255380519,0.10460979,104870.0,104850.0,0.38175246]
[1737255380739,0.10460979,104860.0,104850.0,0.385915]
[1737255380946,0.10460979,104860.0,104850.0,0.39219481]
[1737255381110,0.10460979,104860.0,104850.0,0.36919481]
[1737255381327,0.10178886,104860.0,104850.0,0.36919481]
[1737255381975,0.10178886,104860.0,104850.0,0.38096409]
[1737255382174,0.10460979,104870.0,104860.0,0.286079]
[1737255383292,0.10460979,104870.0,104860.0,0.29784828]
[1737255383868,0.10600881,104880.0,104860.0,0.20248328]
[1737255384069,0.10600881,104880.0,104870.0,0.095356]
[1737255384794,0.10600881,104880.0,104870.0,0.10712528]
[1737255386155,0.10600881,104880.0,104870.0,0.12596274]
[1737255386394,0.10600881,104880.0,104870.0,0.0029818]
[1737255386596,0.10600881,104880.0,104870.0,0.0983378]
[1737255387107,0.00139902,104880.0,104870.0,0.0983378]
[1737255387308,0.00139902,104880.0,104870.0,0.1751378]
[1737255388478,0.00059902,104880.0,104870.0,0.1751378]
[1737255391456,0.00059902,104880.0,104870.0,0.0983378]
[1737255393566,0.09594602,104880.0,104870.0,0.0983378]
[1737255393786,0.00059902,104880.0,104870.0,0.0983378]
[1737255394466,0.00059902,104880.0,104870.0,0.10353766]
[1737255395231,0.00059902,104880.0,104860.0,0.381436]
[1737255395421,0.00059902,104880.0,104870.0,0.095356]
[1737255396881,0.00059902,104880.0,104860.0,0.381436]
[1737255397109,0.00059902,104880.0,104870.0,0.095356]
[1737255397491,0.09594602,104880.0,104870.0,0.095356]
[1737255398732,0.09594602,104880.0,104870.0,0.11393722]
[1737255399500,0.19518683,104880.0,104870.0,0.01858122]
[1737255399702,0.19518683,104880.0,104870.0,0.11393722]
[1737255400124,0.19518683,104880.0,104870.0,0.12559558]
[1737255402845,0.09983983,104880.0,104870.0,0.12559558]
[1737255403048,0.19518683,104880.0,104870.0,0.12559558]
[1737255403248,0.19518683,104880.0,104870.0,0.13184759]
[1737255404131,0.00059902,104880.0,104870.0,0.13184759]
[1737255406509,0.00059902,104880.0,104870.0,0.13227629]
[1737255406694,0.09594602,104880.0,104870.0,0.13227629]
[1737255407506,0.00059902,104880.0,104870.0,0.13227629]
[1737255410659,0.40707057,104880.0,104870.0,0.03692029]
[1737255410867,0.40707057,104880.0,104870.0,0.13227629]
[1737255411073,0.21248276,104880.0,104870.0,0.13227629]
[1737255411363,0.30782976,104880.0,104870.0,0.13227629]
[1737255411773,0.40707057,104880.0,104870.0,0.13227629]
[1737255411974,0.78855429,104880.0,104870.0,0.13227629]
[1737255412557,0.57667055,104880.0,104870.0,0.13227629]
[1737255413487,0.44990018,104880.0,104870.0,0.13227629]
[1737255413631,0.44990018,104880.0,104870.0,0.03692029]
[1737255413836,0.44990018,104880.0,104870.0,0.00625201]
[1737255414041,0.64059618,104880.0,104870.0,0.00162005]
[1737255415089,0.64059618,104880.0,104860.0,0.667518]
[1737255415455,0.64059618,104880.0,104870.0,0.095356]
[1737255416729,0.44990018,104880.0,104870.0,0.095356]
[1737255418090,0.19518683,104880.0,104870.0,0.095356]
[1737255418502,0.19518683,104880.0,104870.0,0.0957847]
[1737255419344,0.00059902,104880.0,104870.0,0.0957847]
[1737255419709,0.00059902,104880.0,104870.0,0.1711847]
[1737255420826,0.21497271,104880.0,104870.0,0.1711847]
[1737255422898,0.00059902,104880.0,104870.0,0.1711847]
[1737255423612,0.00059902,104880.0,104870.0,0.17416676]
[1737255424467,0.31721942,104880.0,104870.0,0.00341076]
[1737255424607,0.58710723,104880.0,104870.0,0.02178182]
[1737255425401,0.81385101,104880.0,104870.0,0.02178182]
[1737255426146,0.81385101,104880.0,104870.0,0.01489158]
[1737255426350,0.73855101,104880.0,104870.0,0.01489158]
[1737255426560,0.48383766,104880.0,104870.0,0.18564758]
[1737255426754,0.48383766,104880.0,104870.0,0.09029158]
[1737255427263,0.38459685,104880.0,104870.0,0.09029158]
[1737255427459,0.28924985,104880.0,104870.0,0.18564758]
[1737255427662,0.38459685,104880.0,104870.0,0.18564758]
[1737255428469,0.64193078,104880.0,104870.0,0.18564758]
[1737255428666,0.64193078,104880.0,104870.0,0.20401485]
[1737255430634,0.64193078,104880.0,104870.0,0.10865885]
[1737255430841,0.35327995,104880.0,104870.0,0.10865885]
[1737255431044,0.35327995,104880.0,104870.0,0.03325885]
[1737255431534,0.35327995,104880.0,104870.0,0.01489158]
[1737255432232,0.38459685,104880.0,104870.0,0.01489158]
[1737255435017,0.37959685,104880.0,104870.0,0.01489158]
[1737255436376,0.34831936,104880.0,104870.0,0.01489158]
[1737255437156,0.45292915,104880.0,104870.0,0.01489158]
[1737255437303,0.53400664,104880.0,104870.0,0.01489158]
[1737255441806,0.54027782,104880.0,104870.0,0.01489158]
[1737255441980,0.64041891,104880.0,104870.0,0.01489158]
[1737255445433,0.64041891,104880.0,104870.0,0.00341076]
[1737255445957,0.64041891,104880.0,104870.0,0.0004287]
[1737255446317,0.79189036,104880.0,104870.0,0.0004287]
[1737255448387,1.08143036,104880.0,104870.0,0.0004287]
[1737255450301,0.64130808,104880.0,104870.0,0.0004287]
[1737255451383,0.67434543,104880.0,104870.0,0.0004287]
[1737255451580,1.09958624,104880.0,104870.0,0.0004287]
[1737255452546,1.25016852,104880.0,104870.0,0.0004287]
[1737255453072,1.25580852,104880.0,104870.0,0.0004287]
[1737255453280,1.11816138,104880.0,104870.0,0.0004287]
[1737255453487,1.32795804,104880.0,104870.0,0.0004287]
[1737255453684,0.476843,104860.0,104840.0,0.37268199]
[1737255453889,0.58174133,104860.0,104840.0,0.37566467]
[1737255455198,0.286082,104870.0,104850.0,0.286115]
[1737255455470,0.35262371,104860.0,104850.0,0.286115]
[1737255455670,0.35262371,104860.0,104850.0,0.29755799]
[1737255455815,0.25725871,104860.0,104850.0,0.29755799]
[1737255456016,0.25725871,104860.0,104850.0,0.38005799]
[1737255456269,0.57377723,104860.0,104850.0,0.38005799]
[1737255456832,0.57377723,104860.0,104850.0,0.38304067]
[1737255457246,0.66914223,104860.0,104850.0,0.38304067]
[1737255457562,0.57377723,104860.0,104850.0,0.38304067]
[1737255457965,0.66914223,104860.0,104850.0,0.38304067]
[1737255458282,0.25725871,104860.0,104850.0,0.38304067]
[1737255458432,0.35262371,104860.0,104850.0,0.38304067]
[1737255459465,0.35262371,104860.0,104850.0,0.09692567]
[1737255459649,0.63856285,104860.0,104850.0,0.01442567]
[1737255460250,0.68696285,104860.0,104850.0,0.01442567]
[1737255460663,0.78696285,104860.0,104850.0,0.01442567]
[1737255460860,0.68696285,104860.0,104850.0,0.01442567]
[1737255461487,0.71912018,104860.0,104850.0,0.01442567]
[1737255461865,0.095374,104850.0,104840.0,0.000101]
[1737255462060,0.19461481,104850.0,104840.0,0.000101]
[1737255462260,0.095374,104850.0,104840.0,0.095484]
[1737255462774,0.095374,104850.0,104840.0,0.09846699]
[1737255463154,0.095374,104850.0,104840.0,0.3006728]
[1737255463337,1.00696437,104860.0,104840.0,0.4914308]
[1737255463551,1.29694818,104860.0,104840.0,0.4914308]
[1737255463762,1.10620518,104860.0,104840.0,0.4914308]
[1737255463966,0.4713192,104850.0,104840.0,0.3006648]
[1737255464325,0.5666932,104850.0,104840.0,0.3006648]
[1737255464544,0.4713192,104850.0,104840.0,0.3006648]
[1737255464946,0.88298312,104850.0,104840.0,0.30057684]
[1737255465816,0.88298312,104850.0,104840.0,0.30100554]
[1737255466008,0.48095246,104850.0,104840.0,0.30100554]
[1737255466986,0.48095246,104850.0,104840.0,0.30091761]
[1737255467411,0.6715176,104850.0,104840.0,0.0148515]
[1737255467592,0.7668916,104850.0,104840.0,0.0148515]
[1737255467768,0.66199327,104850.0,104840.0,0.0148515]
[1737255467984,0.79048323,104850.0,104840.0,0.0148515]
[1737255468331,0.79048323,104850.0,104840.0,0.00341169]
[1737255468549,0.79048323,104850.0,104840.0,0.0004287]
[1737255469038,0.45169801,104850.0,104840.0,0.0004287]
[1737255469864,0.55659634,104850.0,104840.0,0.0004287]
[1737255470361,0.87274455,104850.0,104840.0,0.0004287]
[1737255471152,0.55659634,104850.0,104840.0,0.0004287]
[1737255473981,0.2570832,104850.0,104840.0,0.0958117]
[1737255474151,0.3524572,104850.0,104840.0,0.0958117]
[1737255475538,0.4806544,104850.0,104840.0,0.09879464]
[1737255475857,0.4806544,104850.0,104840.0,0.11023057]
[1737255477270,0.48155341,104850.0,104840.0,0.11023057]
[1737255479687,0.48299341,104850.0,104840.0,0.11023057]
[1737255480960,0.38761941,104850.0,104840.0,0.18983057]
[1737255481706,0.38761941,104850.0,104840.0,0.20812903]
[1737255482792,0.21643509,104850.0,104840.0,0.20812903]
[1737255484551,0.21643509,104850.0,104840.0,0.21526361]
[1737255485573,0.31180909,104850.0,104840.0,0.21526361]
[1737255485775,0.21643509,104850.0,104840.0,0.21526361]
[1737255486245,0.60171549,104850.0,104840.0,0.21526361]
[1737255486779,0.69708949,104850.0,104840.0,0.13566361]
[1737255487965,0.60171549,104850.0,104840.0,0.13566361]
[1737255488120,0.51607706,104850.0,104840.0,0.13566361]
[1737255491473,0.55183407,104850.0,104840.0,0.04028061]
[1737255491752,0.48299341,104850.0,104840.0,0.13566361]
[1737255492701,0.48299341,104850.0,104840.0,0.04028061]
[1737255492702,0.69699856,104850.0,104840.0,0.04028061]
[1737255493658,0.95408176,104850.0,104840.0,0.04028061]
[1737255494619,0.42363687,104850.0,104840.0,0.04028061]
[1737255494824,0.52287768,104850.0,104840.0,0.04028061]
[1737255495124,0.60547768,104850.0,104840.0,0.02198215]
[1737255497078,0.61280465,104850.0,104840.0,0.01484757]
[1737255497480,0.90222069,104850.0,104840.0,0.01484757]
[1737255497872,0.90222069,104850.0,104840.0,0.00341164]
[1737255498415,0.64513749,104850.0,104840.0,0.00341164]
[1737255499228,0.64513749,104850.0,104840.0,0.0004287]
[1737255501907,0.90239497,104850.0,104840.0,0.0004287]
[1737255502163,0.90239497,104850.0,104840.0,0.00341178]
[1737255503821,0.64513749,104850.0,104840.0,0.0004287]
[1737255506272,1.30410043,104850.0,104840.0,0.0004287]
[1737255506435,1.33450058,104850.0,104840.0,0.0004287]
[1737255506644,1.40334124,104850.0,104840.0,0.0004287]
[1737255506903,1.23525977,104850.0,104840.0,0.0004287]
[1737255509733,1.05341896,104850.0,104840.0,0.0004287]
[1737255509970,1.05341896,104850.0,104840.0,0.1750117]
[1737255510124,1.05341896,104850.0,104840.0,0.0796287]
[1737255511038,0.87049411,104850.0,104840.0,0.0796287]
[1737255511271,1.16867558,104850.0,104840.0,0.0004287]
[1737255511467,1.44091639,104850.0,104840.0,0.0004287]
[1737255511810,1.54091639,104850.0,104840.0,0.0004287]
[1737255512054,1.18371896,104850.0,104840.0,0.0004287]
[1737255512456,1.28371896,104850.0,104840.0,0.0004287]
[1737255512658,1.18371896,104850.0,104840.0,0.0004287]
[1737255513230,1.75497069,104850.0,104840.0,0.0004287]
[1737255513439,1.75497069,104850.0,104800.0,0.29453483]
[1737255513440,0.797847,104830.0,104800.0,0.30597117]
[1737255513646,0.095407,104820.0,104800.0,0.30597117]
[1737255513879,0.286217,104820.0,104800.0,0.30597117]
[1737255514509,0.09541,104810.0,104800.0,0.09893217]
[1737255514685,0.09541,104810.0,104800.0,0.09943091]
[1737255514884,0.48108945,104810.0,104800.0,0.09943091]
[1737255515093,0.38567945,104810.0,104800.0,0.19484991]
[1737255515616,0.38567945,104810.0,104800.0,0.09943091]
[1737255515824,0.38567945,104810.0,104800.0,0.19484991]
[1737255515996,0.48108945,104810.0,104800.0,0.09943091]
[1737255516334,0.38567945,104810.0,104800.0,0.19484991]
[1737255516738,0.59994582,104810.0,104800.0,0.09943091]
[1737255516911,0.69535582,104810.0,104800.0,0.09943091]
[1737255517462,0.69535582,104810.0,104800.0,0.02023091]
[1737255517812,0.69535582,104810.0,104800.0,0.01545692]
[1737255518627,0.69535582,104810.0,104800.0,0.00402058]
[1737255519054,0.69535582,104810.0,104800.0,0.09943958]
[1737255520063,0.73150074,104810.0,104800.0,0.00402058]
[1737255520267,0.93415407,104810.0,104800.0,0.00402058]
[1737255520591,0.73150074,104810.0,104800.0,0.00402058]
[1737255520741,0.73150074,104810.0,104800.0,0.00103684]
[1737255521117,0.71461976,104810.0,104800.0,0.00103684]
[1737255521918,0.81386057,104810.0,104800.0,0.00103684]
[1737255522276,0.73150075,104810.0,104800.0,0.00103684]
[1737255523101,0.81702574,104810.0,104800.0,0.00103684]
[1737255524340,0.94528385,104810.0,104800.0,0.00103684]
[1737255525386,0.68481748,104810.0,104800.0,0.00103684]
[1737255527996,0.51340439,104810.0,104800.0,0.00103684]
[1737255530916,0.3091931,104810.0,104800.0,0.09645584]
[1737255531235,0.2137831,104810.0,104800.0,0.09645584]
[1737255531441,0.3091931,104810.0,104800.0,0.00103684]
[1737255531631,0.3091931,104810.0,104800.0,0.09645584]
[1737255531816,0.2137831,104810.0,104800.0,0.27772632]
[1737255532001,0.2137831,104810.0,104800.0,0.17275584]
[1737255532198,0.2137831,104810.0,104800.0,0.46999665]
[1737255532933,0.2137831,104810.0,104800.0,0.47767021]
[1737255533468,0.2137831,104810.0,104800.0,0.49684474]
[1737255533669,0.87116708,104840.0,104820.0,0.286195]
[1737255533670,0.96710367,104840.0,104820.0,0.286195]
[1737255533866,0.095392,104830.0,104820.0,0.286195]
[1737255534168,0.095392,104830.0,104820.0,0.095396]
[1737255534317,0.72055219,104840.0,104820.0,0.190787]
[1737255534523,1.01147001,104840.0,104820.0,0.476976]
[1737255534963,1.01147001,104840.0,104820.0,0.47995937]
[1737255535168,0.3860952,104840.0,104830.0,0.172892]
[1737255535369,0.3860952,104840.0,104830.0,0.27213281]
[1737255535881,0.3860952,104840.0,104830.0,0.80010329]
[1737255536893,0.00089901,104840.0,104830.0,0.80010329]
[1737255537538,0.00233901,104850.0,104840.0,0.565283]
[1737255537709,0.00233901,104850.0,104840.0,0.85259429]
[1737255538713,0.00233901,104850.0,104840.0,0.85309303]
[1737255539772,0.00233901,104850.0,104840.0,0.86118685]
[1737255540152,0.00233901,104850.0,104840.0,0.83818685]
[1737255540359,0.00233901,104850.0,104840.0,0.46952255]
[1737255541580,0.00233901,104850.0,104840.0,0.82449303]
[1737255541756,0.00233901,104850.0,104840.0,0.84749303]
[1737255541972,0.00233901,104850.0,104840.0,0.69749303]
[1737255542152,0.00233901,104850.0,104840.0,0.85309303]
[1737255542560,0.00233901,104850.0,104840.0,0.70309303]
[1737255542770,0.00233901,104850.0,104840.0,0.85309303]
[1737255543317,0.00233901,104850.0,104840.0,0.83584245]
[1737255543521,0.00233901,104850.0,104840.0,0.69144245]
[1737255543726,0.00233901,104850.0,104840.0,0.48087197]
[1737255543936,0.00233901,104850.0,104840.0,0.58584245]
[1737255544489,0.00233901,104850.0,104840.0,0.48087197]
[1737255545167,0.00233901,104850.0,104840.0,0.43397197]
[1737255545375,0.00233901,104850.0,104840.0,0.28397197]
[1737255545865,0.00233901,104850.0,104840.0,0.27262255]
[1737255546214,0.00233901,104850.0,104840.0,0.09588174]
[1737255546850,0.00233901,104850.0,104840.0,0.09630984]
[1737255548788,0.20268349,104850.0,104840.0,0.09630984]
[1737255549135,0.09771301,104850.0,104840.0,0.00092684]
[1737255549665,0.09771301,104850.0,104800.0,0.0005381]
[1737255549666,0.08,104830.0,104800.0,0.0005381]
[1737255549871,0.57040629,104830.0,104810.0,0.095409]
[1737255550070,0.56083681,104830.0,104800.0,0.3821941]
[1737255550292,0.56083681,104830.0,104810.0,0.095408]
[1737255550661,0.095401,104820.0,104800.0,0.4776061]
[1737255552400,0.56083681,104830.0,104800.0,0.3821941]
[1737255552596,0.46543781,104830.0,104810.0,0.095409]
[1737255552804,0.17924081,104830.0,104820.0,0.095401]
[1737255553361,0.27463281,104830.0,104810.0,0.477036]
[1737255553566,0.27463281,104830.0,104810.0,0.286216]
[1737255553706,0.46541881,104830.0,104810.0,0.286216]
[1737255555957,0.4999411,104840.0,104820.0,0.286203]
[1737255556168,0.59918191,104840.0,104820.0,0.286203]
[1737255556373,0.095392,104830.0,104810.0,0.477021]
[1737255556571,0.286177,104830.0,104810.0,0.477021]
[1737255557252,0.37168199,104840.0,104820.0,0.286197]
[1737255557515,0.286157,104840.0,104820.0,0.286197]
[1737255557672,0.286157,104840.0,104820.0,0.476997]
[1737255558775,0.286157,104840.0,104830.0,0.095392]
[1737255559563,0.095388,104840.0,104830.0,0.095392]
[1737255559767,0.095383,104840.0,104830.0,0.095392]
[1737255560441,0.66545744,104850.0,104830.0,0.095392]
[1737255560682,0.095383,104840.0,104830.0,0.286176]
[1737255561094,0.095383,104840.0,104830.0,0.095392]
[1737255561243,0.96504873,104850.0,104830.0,0.095392]
[1737255561591,0.96504873,104850.0,104830.0,0.286175]
[1737255562155,0.095383,104840.0,104830.0,0.095392]
[1737255564664,0.51931425,104850.0,104830.0,0.286161]
[1737255564821,0.71007725,104850.0,104830.0,0.286161]
[1737255567137,0.22931444,104850.0,104840.0,0.095383]
[1737255568913,0.22931444,104850.0,104830.0,0.381544]
[1737255569113,0.42006644,104850.0,104830.0,0.476929]
[1737255569667,0.71578892,104850.0,104830.0,0.286155]
[1737255571237,0.71578892,104850.0,104830.0,0.47693]
[1737255572431,0.20035348,104840.0,104820.0,0.476978]
[1737255572655,0.095383,104840.0,104820.0,0.476978]
[1737255572867,0.286159,104840.0,104820.0,0.476978]
[1737255573069,0.476936,104840.0,104820.0,0.476978]
[1737255574705,0.58190648,104840.0,104820.0,0.476978]
[1737255574899,0.476936,104840.0,104820.0,0.67920152]
[1737255575103,0.286159,104840.0,104820.0,0.67920152]
[1737255575439,0.286159,104840.0,104820.0,0.48840052]
[1737255575936,0.286159,104840.0,104820.0,0.67919352]
[1737255576049,0.095383,104840.0,104820.0,0.58379652]
[1737255576249,0.095383,104840.0,104830.0,0.095392]
[1737255576522,0.70988563,104850.0,104820.0,0.01142252]
[1737255576730,0.63384854,104850.0,104840.0,0.095383]
[1737255578070,0.34772054,104850.0,104840.0,0.095383]
[1737255578394,0.36129454,104850.0,104840.0,0.095383]
[1737255578769,0.23303643,104850.0,104840.0,0.095383]
[1737255580344,0.08836243,104850.0,104840.0,0.095383]
[1737255581508,0.08836243,104850.0,104840.0,0.10681344]
[1737255582077,0.00283744,104850.0,104840.0,0.10681344]
[1737255587034,0.09821144,104850.0,104840.0,0.10681344]
[1737255587441,0.00283744,104850.0,104840.0,0.10681344]
[1737255588040,0.09821144,104850.0,104840.0,0.10681344]
[1737255588250,0.00283744,104850.0,104840.0,0.10681344]
[1737255589763,0.08836243,104850.0,104840.0,0.10681344]
[1737255590805,0.00283744,104850.0,104840.0,0.10681344]
[1737255591885,0.08836243,104850.0,104840.0,0.10681344]
[1737255594448,0.34502054,104850.0,104840.0,0.10681344]
[1737255595725,0.34502054,104850.0,104840.0,0.10724154]
[1737255596028,0.21662054,104850.0,104840.0,0.10819532]
[1737255596229,0.21662054,104850.0,104840.0,0.10724154]
[1737255597664,0.00283744,104850.0,104840.0,0.10724154]
[1737255599358,0.98836648,104860.0,104850.0,0.095374]
[1737255599535,0.98836648,104860.0,104850.0,0.09542411]
[1737255599735,0.883396,104860.0,104850.0,0.09542411]
[1737255600142,0.6696129,104860.0,104850.0,0.09542411]
[1737255600345,0.77458338,104860.0,104850.0,0.09542411]
[1737255601385,0.6696129,104860.0,104850.0,0.09542411]
[1737255601658,0.3835169,104860.0,104850.0,0.09542411]
[1737255601883,0.56458845,104860.0,104850.0,5.011e-05]
[1737255602095,0.56458845,104860.0,104850.0,0.09542411]
[1737255602914,0.62377438,104860.0,104850.0,0.09542411]
[1737255603533,0.52840938,104860.0,104850.0,0.09542411]
[1737255604266,0.38350016,104860.0,104850.0,0.09542411]
[1737255604469,0.38350016,104860.0,104850.0,0.1068614]
[1737255604831,0.38350016,104860.0,104850.0,0.1819614]
[1737255606244,0.38564758,104860.0,104850.0,0.1819614]
[1737255607210,0.38564758,104860.0,104850.0,0.1823894]
[1737255607408,0.38654639,104860.0,104850.0,0.1823894]
[1737255607622,0.58688187,104860.0,104850.0,0.0119154]
[1737255607825,0.56231139,104860.0,104850.0,0.1072894]
[1737255608545,0.88153499,104860.0,104850.0,0.0119154]
[1737255608751,0.92803499,104860.0,104850.0,0.0119154]
[1737255608952,0.92803499,104860.0,104850.0,0.1072894]
[1737255609758,0.60881328,104860.0,104850.0,0.1072894]
[1737255610544,0.69453657,104860.0,104850.0,0.1072894]
[1737255611635,0.79950705,104860.0,104850.0,0.1072894]
[1737255612127,0.69453657,104860.0,104850.0,0.1072894]
[1737255612477,0.43741693,104860.0,104850.0,0.1072894]
[1737255616759,0.54238741,104860.0,104850.0,0.0119154]
[1737255616937,0.64162822,104860.0,104850.0,0.0119154]
[1737255617115,0.89874786,104860.0,104850.0,0.0119154]
[1737255618142,0.68449474,104860.0,104850.0,0.0119154]
[1737255618368,0.68449474,104860.0,104850.0,0.00047811]
[1737255618866,0.99952189,104850.0,104840.0,0.2865581]
[1737255619092,0.99952189,104850.0,104840.0,0.28660825]
[1737255619544,0.99952189,104850.0,104840.0,0.29803865]
[1737255619749,1.59968971,104850.0,104840.0,0.29803865]
[1737255620020,1.69506371,104850.0,104840.0,0.29803865]
[1737255620258,1.69506371,104850.0,104840.0,0.01190865]
[1737255620259,1.899275,104850.0,104840.0,0.01190865]
[1737255621083,1.81353674,104850.0,104840.0,0.01190865]
[1737255621896,1.68492935,104850.0,104840.0,0.00047825]
[1737255622287,1.55622682,104850.0,104840.0,0.00047825]
[1737255624561,1.63192682,104850.0,104840.0,0.00047825]
[1737255625051,1.67792682,104850.0,104840.0,0.00047825]
[1737255625182,1.9328973,104850.0,104840.0,0.00047825]
[1737255625390,2.03213811,104850.0,104840.0,0.00047825]
[1737255626466,2.06427807,104850.0,104840.0,0.00047825]
[1737255627654,1.96503726,104850.0,104840.0,0.00047825]
[1737255628328,1.86006678,104850.0,104840.0,0.00047825]
[1737255629018,2.11720473,104850.0,104840.0,0.00047825]
[1737255629528,2.22217521,104850.0,104840.0,0.00047825]
[1737255629910,2.24107438,104850.0,104840.0,0.00047825]
[1737255630280,2.1361039,104850.0,104840.0,0.00047825]
[1737255630645,2.24107438,104850.0,104840.0,0.00047825]
[1737255631146,2.1361039,104850.0,104840.0,0.00047825]
[1737255632204,2.23534471,104850.0,104840.0,0.00047825]
[1737255632654,2.1361039,104850.0,104840.0,0.00047825]
[1737255633058,1.8468443,104850.0,104840.0,0.00047825]
[1737255642151,2.1361039,104850.0,104840.0,0.00047825]
[1737255643189,1.8468443,104850.0,104840.0,0.00047825]
[1737255643726,1.84774311,104850.0,104840.0,0.00047825]
[1737255645373,1.90801325,104850.0,104840.0,0.00047825]
[1737255646236,2.11298373,104850.0,104840.0,0.00047825]
[1737255647627,2.03598373,104850.0,104840.0,0.00047825]
[1737255648984,1.71757564,104850.0,104840.0,0.00047825]
[1737255649193,0.25,104840.0,104830.0,0.00019384]
[1737255649395,0.65219429,104840.0,104830.0,0.00019384]
[1737255649616,0.60139429,104840.0,104830.0,0.00019384]
[1737255651028,1.33281525,104840.0,104830.0,0.00019384]
[1737255651234,1.43205606,104840.0,104830.0,0.00019384]
[1737255653466,1.53702654,104840.0,104830.0,0.00019384]
[1737255653973,1.24807011,104840.0,104830.0,0.00019384]
[1737255654963,1.14309963,104840.0,104830.0,0.00019384]
[1737255655760,1.04385882,104840.0,104830.0,0.00019384]
[1737255657273,1.05257446,104840.0,104830.0,0.00019384]
[1737255659861,0.495401,104820.0,104810.0,0.0004281]
[1737255660196,0.69961229,104820.0,104810.0,0.0004281]
[1737255661993,0.95620352,104820.0,104810.0,0.0004281]
[1737255662197,0.70620352,104820.0,104810.0,0.0004281]
[1737255662397,0.35583204,104820.0,104810.0,0.0760281]
[1737255663062,0.35583204,104820.0,104810.0,0.0004281]
[1737255663063,0.45123304,104820.0,104810.0,0.0004281]
[1737255663904,0.40846601,104820.0,104810.0,0.0004281]
[1737255664081,0.40846601,104820.0,104810.0,0.0760281]
[1737255664410,0.51343649,104820.0,104810.0,0.0760281]
[1737255664629,0.89832006,104820.0,104810.0,0.0760281]
[1737255666552,0.68449586,104820.0,104810.0,0.0760281]
[1737255666890,0.57952538,104820.0,104810.0,0.0760281]
[1737255668549,0.7078856,104820.0,104810.0,0.0760281]
[1737255669346,0.77677675,104820.0,104810.0,0.0004281]
[1737255671164,0.68137575,104820.0,104810.0,0.0004281]
[1737255671790,0.77677675,104820.0,104810.0,0.0004281]
[1737255672148,0.68137575,104820.0,104810.0,0.0004281]
[1737255672345,0.77677675,104820.0,104810.0,0.0004281]
[1737255675755,0.87601756,104820.0,104810.0,0.0004281]
[1737255676112,0.94490871,104820.0,104810.0,0.0004281]
[1737255677085,0.8456679,104820.0,104810.0,0.0004281]
[1737255677297,0.77677675,104820.0,104810.0,0.0004281]
[1737255677449,0.8456679,104820.0,104810.0,0.0004281]
[1737255677650,0.54624832,104820.0,104810.0,0.0004281]
[1737255678719,0.80283955,104820.0,104810.0,0.0004281]
[1737255679069,0.7339484,104820.0,104810.0,0.0004281]
[1737255679457,1.20208036,104820.0,104810.0,0.0004281]
[1737255679785,1.16234259,104820.0,104810.0,0.0004281]
[1737255680536,1.06310178,104820.0,104810.0,0.0004281]
[1737255680735,1.07187394,104820.0,104810.0,0.0004281]
[1737255680932,0.9434875,104820.0,104810.0,0.0004281]
[1737255681536,1.0234875,104820.0,104810.0,0.0004281]
[1737255681984,1.1234875,104820.0,104810.0,0.0004281]
[1737255682184,1.22272831,104820.0,104810.0,0.0004281]
[1737255682596,0.86689627,104820.0,104810.0,0.0004281]
[1737255682987,1.59794981,104820.0,104810.0,0.0004281]
[1737255683546,1.19905866,104820.0,104810.0,0.0004281]
[1737255683693,1.15335866,104820.0,104810.0,0.0766281]
[1737255684141,1.30335866,104820.0,104810.0,0.0766281]
[1737255684300,1.15335866,104820.0,104810.0,0.0766281]
[1737255684644,0.62912298,104820.0,104810.0,0.0766281]
[1737255684843,0.52912298,104820.0,104810.0,0.0766281]
[1737255685244,0.46023183,104820.0,104810.0,0.0766281]